bitfinex/quotes_BTCUSD_20250709
["timestamp","ask_amount","ask_price","bid_price","bid_amount"]
[1752069596544,0.37254674,109310.0,109300.0,0.58519163]
[1752069596960,0.36339904,109310.0,109300.0,0.58519163]
[1752069597171,0.3542515,109310.0,109300.0,0.58519163]
[1752069597950,0.3542515,109310.0,109300.0,0.61639163]
[1752069598302,0.00246656,109310.0,109300.0,0.61639163]
[1752069599817,0.0116141,109310.0,109300.0,0.61639163]
[1752069600040,0.00246656,109310.0,109300.0,0.63180984]
[1752069600241,0.01161418,109310.0,109300.0,0.61639163]
[1752069600460,0.0116141,109310.0,109300.0,0.61639163]
[1752069600641,0.00246656,109310.0,109300.0,0.61639163]
[1752069601045,0.00246656,109310.0,109300.0,1.0596135]
[1752069601333,0.0116141,109310.0,109300.0,0.69876604]
[1752069601560,0.37254674,109310.0,109300.0,0.54302911]
[1752069601832,0.38169436,109310.0,109300.0,0.54302911]
[1752069602061,0.36339904,109310.0,109300.0,0.54302911]
[1752069602262,0.3542515,109310.0,109300.0,0.54302911]
[1752069602468,0.3542515,109310.0,109300.0,0.57552911]
[1752069602675,0.3542515,109310.0,109300.0,0.43024911]
[1752069602883,0.3542515,109310.0,109300.0,0.57552911]
[1752069603292,0.36339904,109310.0,109300.0,0.57548911]
[1752069603503,0.00238082,109310.0,109300.0,0.57548911]
[1752069603869,0.35416576,109310.0,109300.0,0.54298911]
[1752069604303,0.35416576,109310.0,109300.0,0.39774911]
[1752069604480,0.35416576,109310.0,109300.0,0.54298911]
[1752069604887,0.3633133,109310.0,109300.0,0.54298911]
[1752069605085,0.01152836,109310.0,109300.0,0.54298911]
[1752069605297,0.3633133,109310.0,109300.0,0.54298911]
[1752069605989,0.372461,109310.0,109300.0,0.39774911]
[1752069606194,0.01152836,109310.0,109300.0,0.54298911]
[1752069606423,0.3633133,109310.0,109300.0,0.54298911]
[1752069606610,0.35416576,109310.0,109300.0,0.54298911]
[1752069606872,0.3633133,109310.0,109300.0,0.54298911]
[1752069607070,0.00238082,109310.0,109300.0,0.96725423]
[1752069607309,0.00238082,109310.0,109300.0,0.69782699]
[1752069607483,0.00238082,109310.0,109300.0,1.07665547]
[1752069607845,0.00238082,109310.0,109300.0,0.57963053]
[1752069608264,0.00238082,109310.0,109300.0,1.42141547]
[1752069608478,0.00238082,109310.0,109300.0,0.91963053]
[1752069608916,0.00238082,109310.0,109300.0,0.89218416]
[1752069609117,0.00238082,109310.0,109300.0,0.21436462]
[1752069609118,0.58742779,109310.0,109300.0,0.21436462]
[1752069609323,0.61742779,109310.0,109300.0,0.37944993]
[1752069609538,0.08267647,109310.0,109300.0,0.40689646]
[1752069609743,0.41360953,109310.0,109300.0,0.40689655]
[1752069609941,0.60572369,109310.0,109300.0,0.39774784]
[1752069610146,0.60572369,109310.0,109300.0,0.55209663]
[1752069610343,0.37246141,109310.0,109300.0,0.56124517]
[1752069610583,0.38160953,109310.0,109300.0,0.56124517]
[1752069610801,0.36331346,109310.0,109300.0,0.56124517]
[1752069611013,0.00238082,109310.0,109300.0,0.41604517]
[1752069611143,0.01152836,109310.0,109300.0,0.59434517]
[1752069611343,0.02982385,109310.0,109300.0,0.59435202]
[1752069611588,0.35416576,109310.0,109300.0,0.59435202]
[1752069611994,0.00238082,109310.0,109300.0,0.48145202]
[1752069612175,0.00238082,109310.0,109300.0,0.62665202]
[1752069613568,0.01152836,109310.0,109300.0,0.62665202]
[1752069614266,0.00238082,109310.0,109300.0,0.62665202]
[1752069614673,0.00238082,109310.0,109300.0,0.64207023]
[1752069614814,0.00238082,109310.0,109300.0,0.62665202]
[1752069615739,0.00238082,109310.0,109300.0,0.48145202]
[1752069615984,0.00238082,109310.0,109300.0,0.62661202]
[1752069616173,0.01152844,109310.0,109300.0,0.62661202]
[1752069616482,0.02067623,109310.0,109300.0,0.59431202]
[1752069616637,0.01152844,109310.0,109300.0,0.59431202]
[1752069617284,0.00238082,109310.0,109300.0,0.59431202]
[1752069617491,0.35416576,109310.0,109300.0,0.59431202]
[1752069617688,0.36331338,109310.0,109300.0,0.59431202]
[1752069617889,0.37246125,109310.0,109300.0,0.5612121]
[1752069618107,0.36331338,109310.0,109300.0,0.56121151]
[1752069618306,0.38160929,109310.0,109300.0,0.37030765]
[1752069618507,0.44450929,109310.0,109300.0,0.52461661]
[1752069618712,0.63662337,109310.0,109300.0,0.53376548]
[1752069618907,0.63662337,109310.0,109300.0,0.40402369]
[1752069619113,0.63662337,109310.0,109300.0,0.53376548]
[1752069619545,0.63662337,109310.0,109300.0,0.54291427]
[1752069619709,0.4536575,109310.0,109300.0,0.54291427]
[1752069619915,0.63662337,109310.0,109300.0,0.54291427]
[1752069620300,0.59607575,109310.0,109300.0,0.52461661]
[1752069620506,0.57777984,109310.0,109300.0,0.10496338]
[1752069620723,0.61057984,109310.0,109300.0,0.10496338]
[1752069620928,0.71655762,109310.0,109300.0,0.005]
[1752069621533,0.07284996,109290.0,109280.0,0.28373911]
[1752069621728,0.63508263,109290.0,109280.0,0.43804966]
[1752069621973,0.60318263,109290.0,109280.0,0.29288966]
[1752069622194,0.60318263,109290.0,109280.0,0.28373911]
[1752069622427,0.59403342,109290.0,109280.0,0.210528]
[1752069622555,0.59403342,109290.0,109280.0,0.21967838]
[1752069622753,0.41103407,109290.0,109280.0,0.21967838]
[1752069622954,0.05009917,109290.0,109280.0,0.22882868]
[1752069623244,0.37008411,109290.0,109280.0,0.22882817]
[1752069623419,0.37923391,109290.0,109280.0,0.22882817]
[1752069623621,0.37923391,109290.0,109280.0,0.21967796]
[1752069623826,0.38838387,109290.0,109280.0,0.21967796]
[1752069624068,0.57138322,109290.0,109280.0,0.20137728]
[1752069624279,0.56223376,109290.0,109280.0,0.20137745]
[1752069624492,0.01929951,109290.0,109280.0,0.22267822]
[1752069624744,0.03759792,109290.0,109280.0,0.23182843]
[1752069624966,0.38938286,109290.0,109280.0,0.23182843]
[1752069625383,0.38938353,109290.0,109280.0,0.23182843]
[1752069625593,0.001,109290.0,109280.0,0.26472843]
[1752069625828,0.001,109290.0,109280.0,0.38806536]
[1752069626038,0.01628308,109310.0,109300.0,0.21042898]
[1752069626261,0.00914762,109310.0,109300.0,0.38844898]
[1752069626487,0.01829541,109310.0,109300.0,0.38844898]
[1752069626757,0.02744328,109310.0,109300.0,0.38844898]
[1752069627020,0.03659123,109310.0,109300.0,0.38844898]
[1752069627281,0.01114762,109310.0,109300.0,0.38944898]
[1752069627541,0.02029549,109310.0,109300.0,0.38944898]
[1752069628181,0.02944353,109310.0,109300.0,0.38944898]
[1752069628687,0.57334254,109310.0,109300.0,0.38944915]
[1752069628930,0.57334313,109310.0,109300.0,0.33825165]
[1752069629158,0.37208093,109310.0,109300.0,0.34740044]
[1752069629398,0.36293256,109310.0,109300.0,0.35654898]
[1752069629670,0.39237633,109310.0,109300.0,0.35754898]
[1752069630112,0.57534287,109310.0,109300.0,0.34840044]
[1752069630334,0.38322871,109310.0,109300.0,0.36669769]
[1752069630570,0.37408059,109310.0,109300.0,0.36669769]
[1752069630815,0.39237692,109310.0,109300.0,0.35754915]
[1752069631035,0.39237692,109310.0,109300.0,0.34840052]
[1752069631036,0.56619509,109310.0,109300.0,0.34840052]
[1752069631309,0.01314779,109310.0,109300.0,0.34840061]
[1752069631522,0.0131477,109310.0,109300.0,0.39789794]
[1752069631743,0.01314754,109310.0,109300.0,0.42869794]
[1752069631968,0.004,109310.0,109300.0,0.42869794]
[1752069632315,0.004,109310.0,109300.0,1.21191981]
[1752069632420,0.004,109310.0,109300.0,1.31188319]
[1752069632650,0.004,109310.0,109300.0,1.39424485]
[1752069632867,0.002,109310.0,109300.0,1.39324485]
[1752069633075,0.002,109310.0,109300.0,1.34324485]
[1752069633301,0.001,109310.0,109300.0,0.99145991]
[1752069633540,0.0274386,109330.0,109320.0,0.2103905]
[1752069633748,0.2287493,109330.0,109320.0,0.36465761]
[1752069633949,0.58053424,109330.0,109320.0,0.36465761]
[1752069634152,0.37930927,109330.0,109320.0,0.35551066]
[1752069634357,0.02752433,109330.0,109320.0,0.38007574]
[1752069634567,0.02752433,109330.0,109320.0,0.35551066]
[1752069634568,0.37930935,109330.0,109320.0,0.35551066]
[1752069634791,0.56224217,109330.0,109320.0,0.32806914]
[1752069635000,0.54394928,109330.0,109320.0,0.32806914]
[1752069635217,0.54394928,109330.0,109320.0,0.14512]
[1752069635218,0.57554928,109330.0,109320.0,0.14512]
[1752069635455,0.22376434,109330.0,109320.0,0.33721659]
[1752069635668,0.0183783,109330.0,109320.0,0.39555795]
[1752069635843,0.01023118,109330.0,109320.0,0.43075795]
[1752069636065,0.01937721,109330.0,109320.0,0.28563795]
[1752069636215,0.2297487,109330.0,109320.0,0.39751795]
[1752069636666,0.39860124,109330.0,109320.0,0.39751795]
[1752069636873,0.57238778,109330.0,109320.0,0.36661811]
[1752069637072,0.38945521,109330.0,109320.0,0.37676498]
[1752069637434,0.0193773,109330.0,109320.0,0.43796498]
[1752069637648,0.01023127,109330.0,109320.0,0.78974992]
[1752069637868,0.01937738,109330.0,109320.0,0.78974992]
[1752069638087,0.01937738,109330.0,109320.0,0.4441614]
[1752069638088,0.01023127,109330.0,109320.0,0.4441614]
[1752069638304,0.01937747,109330.0,109320.0,0.4441614]
[1752069638514,0.02852383,109330.0,109320.0,0.43796498]
[1752069638726,0.22060285,109330.0,109320.0,0.39761811]
[1752069638932,0.57238779,109330.0,109320.0,0.37676506]
[1752069639132,0.57238779,109330.0,109320.0,0.35847124]
[1752069639336,0.57238779,109330.0,109320.0,0.23168556]
[1752069639551,0.56324184,109330.0,109320.0,0.37676556]
[1752069639759,0.56324184,109330.0,109320.0,0.34932379]
[1752069639935,0.2114569,109330.0,109320.0,0.35847099]
[1752069640184,0.55409564,109330.0,109320.0,0.14808]
[1752069640392,0.60804928,109330.0,109320.0,0.14808]
[1752069640601,0.60804928,109330.0,109320.0,0.003]
[1752069640815,0.60804928,109330.0,109320.0,0.14808]
[1752069641337,0.60804928,109330.0,109320.0,0.003]
[1752069642417,1.065812,109330.0,109320.0,0.003]
[1752069642648,1.210852,109330.0,109320.0,0.003]
[1752069643277,1.210852,109330.0,109320.0,0.002]
[1752069643732,1.210852,109330.0,109290.0,0.68403599]
[1752069643733,0.02744595,109300.0,109290.0,0.68403599]
[1752069643944,0.02744595,109300.0,109290.0,1.0204763]
[1752069644365,0.02744586,109300.0,109290.0,1.0204763]
[1752069644570,0.01829699,109300.0,109290.0,1.0204763]
[1752069644773,0.02744578,109300.0,109290.0,1.0204763]
[1752069645009,0.02744578,109300.0,109290.0,0.8754363]
[1752069645213,0.02744578,109300.0,109290.0,1.0204763]
[1752069645418,0.01829699,109300.0,109290.0,1.03589451]
[1752069645567,0.01929691,109300.0,109290.0,1.0234763]
[1752069645783,0.01929691,109300.0,109290.0,1.0566763]
[1752069645949,0.02029691,109300.0,109290.0,1.0616763]
[1752069646149,0.002,109300.0,109290.0,1.0616763]
[1752069646402,0.01114837,109300.0,109290.0,1.0616763]
[1752069646552,0.02944578,109300.0,109290.0,1.0616763]
[1752069646756,0.0294457,109300.0,109290.0,1.0616763]
[1752069646977,0.01114837,109300.0,109290.0,1.0616763]
[1752069647154,0.002,109300.0,109290.0,1.0616763]
[1752069647350,0.01114837,109300.0,109290.0,1.0616763]
[1752069647595,0.002,109300.0,109290.0,1.0616763]
[1752069648155,0.002,109300.0,109290.0,0.9166363]
[1752069648362,0.01114854,109300.0,109290.0,1.0616763]
[1752069648994,0.002,109300.0,109290.0,1.0616763]
[1752069652433,0.01114846,109300.0,109290.0,1.0616763]
[1752069652648,0.002,109300.0,109290.0,1.0616763]
[1752069652842,0.01114854,109300.0,109290.0,1.0616763]
[1752069653113,0.002,109300.0,109290.0,1.0616763]
[1752069653834,0.01114846,109300.0,109290.0,1.0616763]
[1752069654128,0.002,109300.0,109290.0,1.0616763]
[1752069654329,0.01114854,109300.0,109290.0,1.0616763]
[1752069654488,0.02029725,109300.0,109290.0,0.9166363]
[1752069654696,0.002,109300.0,109290.0,1.0616363]
[1752069654890,0.02029717,109300.0,109290.0,1.0616363]
[1752069655145,0.01114846,109300.0,109290.0,1.07705451]
[1752069655349,0.002,109300.0,109290.0,1.0616363]
[1752069655520,0.01114846,109300.0,109290.0,1.0616363]
[1752069656208,0.02029717,109300.0,109290.0,1.0616363]
[1752069656437,0.01114846,109300.0,109290.0,1.0616363]
[1752069656887,0.002,109300.0,109290.0,1.0616363]
[1752069657544,0.002,109300.0,109290.0,0.9166363]
[1752069657755,0.002,109300.0,109290.0,1.0616363]
[1752069658426,0.002,109300.0,109290.0,0.9166363]
[1752069658633,0.002,109300.0,109290.0,0.97927464]
[1752069659714,0.002,109300.0,109290.0,0.83427464]
[1752069660135,0.002,109300.0,109290.0,0.97927464]
[1752069660342,0.002,109300.0,109290.0,1.08867588]
[1752069660987,0.002,109300.0,109290.0,0.94367588]
[1752069661187,0.002,109300.0,109290.0,1.08867588]
[1752069661324,0.002,109300.0,109290.0,1.10409409]
[1752069661532,0.002,109300.0,109290.0,1.08867588]
[1752069662165,0.002,109300.0,109290.0,0.94367588]
[1752069662364,0.002,109300.0,109290.0,1.05547588]
[1752069662730,0.002,109300.0,109290.0,1.05884493]
[1752069662915,0.002,109300.0,109290.0,0.9463977]
[1752069663114,0.002,109300.0,109290.0,1.07597949]
[1752069664620,0.002,109300.0,109290.0,0.93097949]
[1752069664827,0.002,109300.0,109290.0,1.07597949]
[1752069665242,0.002,109300.0,109290.0,1.4278947]
[1752069666528,0.002,109300.0,109290.0,1.34562441]
[1752069666744,0.002,109300.0,109290.0,1.45502631]
[1752069667179,0.01114837,109300.0,109290.0,0.84870986]
[1752069667391,0.01114837,109300.0,109290.0,1.04548521]
[1752069667591,0.002,109300.0,109290.0,1.04548521]
[1752069668034,0.01114846,109300.0,109290.0,1.04548521]
[1752069668474,0.002,109300.0,109290.0,1.04548521]
[1752069669084,0.01114837,109300.0,109290.0,1.04548521]
[1752069669508,0.02944554,109300.0,109290.0,1.04549657]
[1752069669715,0.02944545,109300.0,109290.0,1.04549657]
[1752069670164,0.02029683,109300.0,109290.0,1.04549657]
[1752069670365,0.02944545,109300.0,109290.0,1.04549657]
[1752069670721,0.02029683,109300.0,109290.0,1.04549657]
[1752069670920,0.02944545,109300.0,109290.0,1.01255657]
[1752069671126,0.58264102,109300.0,109290.0,0.41787566]
[1752069671329,0.57349332,109300.0,109290.0,0.42702546]
[1752069671533,0.61779591,109300.0,109290.0,0.20738531]
[1752069671736,0.61779591,109300.0,109290.0,0.27006996]
[1752069671937,0.61779591,109300.0,109290.0,0.12510996]
[1752069672434,0.2658807,109300.0,109290.0,0.12511771]
[1752069672860,0.61779591,109300.0,109290.0,0.12511771]
[1752069674627,0.76275591,109300.0,109290.0,0.12511771]
[1752069675285,0.4108407,109300.0,109290.0,0.10796338]
[1752069675518,0.4108407,109300.0,109290.0,0.12510775]
[1752069675738,0.76275591,109300.0,109290.0,0.12510775]
[1752069678212,0.76275591,109300.0,109290.0,0.12509926]
[1752069678441,0.76275591,109300.0,109290.0,0.02513588]
[1752069678890,0.76175591,109300.0,109290.0,0.02213588]
[1752069679113,0.86773369,109300.0,109290.0,0.02213588]
[1752069679334,0.9140396,109300.0,109290.0,0.01913588]
[1752069679784,0.9150396,109300.0,109290.0,0.02313588]
[1752069680253,0.86873369,109300.0,109290.0,0.006]
[1752069680704,0.86773369,109300.0,109290.0,0.004]
[1752069681365,0.19214915,109290.0,109280.0,6e-05]
[1752069681591,0.95977957,109290.0,109280.0,6e-05]
[1752069682650,0.60894963,109290.0,109280.0,0.00206]
[1752069683070,0.60894963,109290.0,109280.0,0.00406]
[1752069683071,0.60994963,109290.0,109280.0,0.00406]
[1752069683721,0.60994963,109290.0,109280.0,0.00206]
[1752069683722,0.60894963,109290.0,109280.0,0.00206]
[1752069684549,0.96086484,109290.0,109280.0,0.00206]
[1752069684912,0.60894963,109290.0,109280.0,0.00206]
[1752069687964,0.61809934,109290.0,109280.0,0.19422682]
[1752069688214,0.34734413,109290.0,109280.0,0.00206]
[1752069688428,0.69925934,109290.0,109280.0,0.00206]
[1752069689592,0.40764413,109290.0,109280.0,0.00206]
[1752069689807,0.75955934,109290.0,109280.0,0.00206]
[1752069690263,0.75955934,109290.0,109280.0,0.01916717]
[1752069691025,0.72925934,109290.0,109280.0,0.01916717]
[1752069691223,0.76165934,109290.0,109280.0,0.01916717]
[1752069692086,0.61669934,109290.0,109280.0,0.01916717]
[1752069692285,0.76165934,109290.0,109280.0,0.01916717]
[1752069693067,1.11357455,109290.0,109280.0,0.01916717]
[1752069694672,0.40974413,109290.0,109280.0,0.01916717]
[1752069694894,1.11357455,109290.0,109280.0,0.01916717]
[1752069695903,1.21955233,109290.0,109280.0,0.01916717]
[1752069697262,0.51572191,109290.0,109280.0,0.01916717]
[1752069697690,1.21955233,109290.0,109280.0,0.01916717]
[1752069697935,1.28933349,109290.0,109280.0,0.01916717]
[1752069699704,1.21955233,109290.0,109280.0,0.01916717]
[1752069701329,0.83519712,109290.0,109280.0,0.01916717]
[1752069701666,1.21751233,109290.0,109280.0,0.01920282]
[1752069702072,0.51368191,109290.0,109280.0,0.01920282]
[1752069702249,1.21751233,109290.0,109280.0,0.01920282]
[1752069703246,1.08308163,109290.0,109280.0,0.01920282]
[1752069703426,1.22800163,109290.0,109280.0,0.01920282]
[1752069704514,0.69921934,109290.0,109280.0,0.01920282]
[1752069704731,0.69921934,109290.0,109280.0,0.05020282]
[1752069705159,0.69921934,109290.0,109280.0,0.01920282]
[1752069705749,0.34730413,109290.0,109280.0,0.01920282]
[1752069706158,0.69921934,109290.0,109280.0,0.01920282]
[1752069709317,1.14237475,109290.0,109280.0,0.01920282]
[1752069709528,1.20367475,109290.0,109280.0,0.01920282]
[1752069709727,1.29511168,109290.0,109280.0,0.01920282]
[1752069710982,0.59128126,109290.0,109280.0,0.01920282]
[1752069711221,1.20387148,109290.0,109280.0,0.01920282]
[1752069713734,0.55429934,109290.0,109280.0,0.05190282]
[1752069713938,0.69917934,109290.0,109280.0,0.05190282]
[1752069717754,0.34726413,109290.0,109280.0,0.05190282]
[1752069717977,0.69917934,109290.0,109280.0,0.05190282]
[1752069718199,0.69917934,109290.0,109280.0,0.05192429]
[1752069718679,0.00108527,109290.0,109280.0,0.7926747]
[1752069718900,0.00108527,109290.0,109280.0,0.790387]
[1752069719509,0.00108527,109290.0,109280.0,0.46596479]
[1752069719949,0.00108527,109290.0,109280.0,0.790387]
[1752069720148,0.00108527,109290.0,109280.0,0.817881]
[1752069721745,0.00108527,109290.0,109280.0,0.80071671]
[1752069722151,0.00108527,109290.0,109280.0,0.81787199]
[1752069723718,0.00108527,109290.0,109280.0,1.43157367]
[1752069724785,0.00108527,109290.0,109280.0,1.07965846]
[1752069725001,0.00108527,109290.0,109280.0,1.43157367]
[1752069725200,0.00108527,109290.0,109280.0,1.3492323]
[1752069725419,0.00108527,109290.0,109280.0,1.45863354]
[1752069725627,8.527e-05,109290.0,109280.0,1.45663354]
[1752069725836,0.00108527,109290.0,109280.0,1.46063354]
[1752069726042,8.527e-05,109290.0,109280.0,1.45663354]
[1752069726442,0.00208527,109290.0,109280.0,1.46563354]
[1752069726658,0.00108527,109290.0,109280.0,1.46263354]
[1752069727104,0.00208527,109290.0,109280.0,1.46663354]
[1752069727346,0.00208527,109290.0,109280.0,1.67370875]
[1752069727535,0.00208527,109290.0,109280.0,1.11471833]
[1752069727736,0.00208527,109290.0,109280.0,1.81854875]
[1752069728091,0.20122521,109330.0,109320.0,0.19209651]
[1752069728306,0.20131064,109330.0,109320.0,0.38585179]
[1752069728729,0.20131064,109330.0,109320.0,0.37585179]
[1752069728911,0.18301783,109330.0,109320.0,0.34405179]
[1752069729122,0.18501783,109330.0,109320.0,0.34505179]
[1752069729347,0.53693304,109330.0,109320.0,0.34505179]
[1752069729556,0.53693304,109330.0,109320.0,0.20025179]
[1752069729763,0.53693304,109330.0,109320.0,0.35419924]
[1752069730393,0.53693304,109330.0,109320.0,0.3449923]
[1752069730851,0.53693304,109330.0,109320.0,0.16289579]
[1752069731062,0.56883304,109330.0,109320.0,0.01809579]
[1752069731272,0.56883304,109330.0,109320.0,0.16289579]
[1752069731475,0.57083304,109330.0,109320.0,0.16389579]
[1752069731686,0.53893304,109330.0,109320.0,0.16389579]
[1752069731899,0.53893304,109330.0,109320.0,0.34684493]
[1752069732110,0.53893304,109330.0,109320.0,0.35599238]
[1752069732318,0.53893304,109330.0,109320.0,0.16389579]
[1752069732524,0.53893304,109330.0,109320.0,0.34684493]
[1752069732738,0.53893304,109330.0,109320.0,0.16389579]
[1752069733772,0.53893304,109330.0,109320.0,0.34684493]
[1752069733976,0.53893304,109330.0,109320.0,0.38779238]
[1752069734402,0.53893304,109330.0,109320.0,0.39693966]
[1752069734614,0.54807957,109330.0,109320.0,0.40608686]
[1752069734822,0.54807957,109330.0,109320.0,0.39693975]
[1752069735034,0.18701783,109330.0,109320.0,0.05089579]
[1752069735246,0.18701783,109330.0,109320.0,0.01909579]
[1752069735456,0.53893304,109330.0,109320.0,0.01909579]
[1752069735676,0.53893304,109330.0,109320.0,0.16385579]
[1752069736323,0.53893304,109330.0,109320.0,0.01908278]
[1752069736549,0.56943304,109330.0,109320.0,0.01908278]
[1752069736779,1.49016296,109330.0,109320.0,0.01908278]
[1752069738374,0.78633254,109330.0,109320.0,0.01908278]
[1752069738590,1.49016296,109330.0,109320.0,0.01908278]
[1752069740360,1.49016296,109330.0,109320.0,0.002]
[1752069741475,1.19157082,109330.0,109320.0,0.002]
[1752069741687,1.19157082,109330.0,109320.0,0.0190966]
[1752069741895,1.54348603,109330.0,109320.0,0.0190966]
[1752069742782,0.67541082,109330.0,109320.0,0.0190966]
[1752069743014,0.82017082,109330.0,109320.0,0.0190966]
[1752069743231,0.85057082,109330.0,109320.0,0.0190966]
[1752069743661,1.29392296,109330.0,109320.0,0.0190966]
[1752069743903,0.94200775,109330.0,109320.0,0.0190966]
[1752069744145,0.85057082,109330.0,109320.0,0.0190966]
[1752069747607,0.82017082,109330.0,109320.0,0.0190966]
[1752069748909,0.78967082,109330.0,109320.0,0.0190966]
[1752069749358,0.43775561,109330.0,109320.0,0.0190966]
[1752069749585,0.78967082,109330.0,109320.0,0.0190966]
[1752069750889,0.82117082,109330.0,109320.0,0.0190966]
[1752069751094,0.85347082,109330.0,109320.0,0.0190966]
[1752069751299,0.85347082,109330.0,109320.0,0.01912631]
[1752069752358,0.85343082,109330.0,109320.0,0.01912631]
[1752069752807,0.85339082,109330.0,109320.0,0.01912631]
[1752069754141,0.82109082,109330.0,109320.0,0.01912631]
[1752069756506,0.91252775,109330.0,109320.0,0.01912631]
[1752069756737,0.82109082,109330.0,109320.0,0.01912631]
[1752069756951,1.54470603,109330.0,109320.0,0.01912631]
[1752069760011,1.54470603,109330.0,109320.0,0.01913348]
[1752069760428,1.54470603,109330.0,109320.0,0.002]
[1752069760814,1.63614296,109330.0,109320.0,0.002]
[1752069761505,1.66871603,109330.0,109320.0,0.002]
[1752069764762,1.52403603,109330.0,109320.0,0.002]
[1752069764983,1.66867603,109330.0,109320.0,0.002]
[1752069765695,1.25356082,109330.0,109320.0,0.0347]
[1752069765924,1.10892082,109330.0,109320.0,0.0347]
[1752069766143,1.01748389,109330.0,109320.0,0.0347]
[1752069766372,1.12955082,109330.0,109320.0,0.0666]
[1752069766586,0.97036997,109330.0,109320.0,0.0666]
[1752069766805,0.18701783,109330.0,109320.0,0.0666]
[1752069767019,0.19616445,109330.0,109320.0,0.24954914]
[1752069767233,0.19616445,109330.0,109320.0,0.26784345]
[1752069767234,0.20531081,109330.0,109320.0,0.26784345]
[1752069767454,0.34995081,109330.0,109320.0,0.27699074]
[1752069767668,0.34995081,109330.0,109320.0,0.28613769]
[1752069767880,0.03152435,109330.0,109320.0,0.29528456]
[1752069768087,0.04067088,109330.0,109320.0,0.29528456]
[1752069768320,0.0223774,109330.0,109320.0,0.64719977]
[1752069768540,0.03152368,109330.0,109320.0,0.64719977]
[1752069768971,0.03152368,109330.0,109320.0,0.29528456]
[1752069769187,0.0223774,109330.0,109320.0,0.29528456]
[1752069769441,0.03152368,109330.0,109320.0,0.29528456]
[1752069769863,0.02952368,109330.0,109320.0,0.29428456]
[1752069770080,0.03867013,109330.0,109320.0,0.27599074]
[1752069770287,0.04781675,109330.0,109320.0,0.28513777]
[1752069770717,0.03867013,109330.0,109320.0,0.29428464]
[1752069770921,0.01123129,109330.0,109320.0,0.29428464]
[1752069771158,0.03667005,109330.0,109320.0,0.29328464]
[1752069771361,0.22060245,109330.0,109320.0,0.28513777]
[1752069771774,0.03767005,109330.0,109320.0,0.29428431]
[1752069772014,0.22060312,109330.0,109320.0,0.27599049]
[1752069772217,0.02852419,109330.0,109320.0,0.28513736]
[1752069772430,0.00108543,109330.0,109320.0,0.28513736]
[1752069772601,0.00108543,109330.0,109320.0,0.7284895]
[1752069772815,0.01023138,109330.0,109320.0,0.37657429]
[1752069773014,0.00108543,109330.0,109320.0,0.37657429]
[1752069773283,0.01023129,109330.0,109320.0,0.37657429]
[1752069773490,0.02852327,109330.0,109320.0,0.7284895]
[1752069773876,0.02852327,109330.0,109320.0,0.37657429]
[1752069774122,0.22974907,109330.0,109320.0,0.52117437]
[1752069774324,0.22060295,109330.0,109320.0,0.52117437]
[1752069774555,0.21145692,109330.0,109320.0,0.41144345]
[1752069774772,0.01937807,109330.0,109320.0,0.42055032]
[1752069774981,0.01937774,109330.0,109320.0,0.42055032]
[1752069775217,0.01023146,109330.0,109320.0,0.42055032]
[1752069775432,0.00108543,109330.0,109320.0,0.86390246]
[1752069775675,0.00108543,109330.0,109320.0,1.62894715]
[1752069775920,0.00108543,109330.0,109320.0,1.81104351]
[1752069777207,0.00108543,109330.0,109320.0,1.73791403]
[1752069777436,0.00208543,109330.0,109320.0,1.06356161]
[1752069777652,0.00208543,109330.0,109320.0,1.41547682]
[1752069778080,0.00108543,109330.0,109320.0,1.41447682]
[1752069778335,0.00108543,109330.0,109320.0,1.41647682]
[1752069778757,0.00108543,109330.0,109320.0,1.76639203]
[1752069779196,8.543e-05,109330.0,109320.0,1.76439203]
[1752069779415,0.00108543,109330.0,109320.0,1.77039203]
[1752069779647,0.00208543,109330.0,109320.0,1.06656161]
[1752069779863,0.00208543,109330.0,109320.0,1.41847682]
[1752069780959,0.00208543,109330.0,109320.0,1.30886584]
[1752069783502,0.00208543,109330.0,109320.0,1.16430584]
[1752069783722,0.00208543,109330.0,109320.0,1.30882584]
[1752069786987,0.01123129,109330.0,109320.0,0.95691063]
[1752069787166,0.00208543,109330.0,109320.0,1.16430584]
[1752069787428,0.01123138,109330.0,109320.0,0.80324376]
[1752069787640,0.02037758,109330.0,109320.0,0.5254337]
[1752069788259,0.02952394,109330.0,109320.0,0.5254337]
[1752069788473,0.03867039,109330.0,109320.0,0.5254337]
[1752069788700,0.02952394,109330.0,109320.0,0.5254337]
[1752069788917,0.01123138,109330.0,109320.0,0.5254337]
[1752069789127,0.03867014,109330.0,109320.0,0.5254337]
[1752069789337,0.02952369,109330.0,109320.0,0.5254337]
[1752069789759,0.03867005,109330.0,109320.0,0.5254337]
[1752069790001,0.03866997,109330.0,109320.0,0.5254337]
[1752069790430,0.02952369,109330.0,109320.0,0.5254337]
[1752069790864,0.03867014,109330.0,109320.0,0.5254337]
[1752069791552,0.04781667,109330.0,109320.0,0.5254337]
[1752069792193,0.03867014,109330.0,109320.0,0.5254337]
[1752069792828,0.23074907,109330.0,109320.0,0.3809537]
[1752069793038,0.03867072,109330.0,109320.0,0.3809537]
[1752069793245,0.0295241,109330.0,109320.0,0.5254337]
[1752069793651,0.03867055,109330.0,109320.0,0.5254337]
[1752069793868,0.03867055,109330.0,109320.0,0.5253937]
[1752069794076,0.5826652,109330.0,109320.0,0.3809537]
[1752069794285,0.573519,109330.0,109320.0,0.48434692]
[1752069794490,0.55522619,109330.0,109320.0,0.46605252]
[1752069794697,0.55522619,109330.0,109320.0,0.47519989]
[1752069794910,0.61982619,109330.0,109320.0,0.10596338]
[1752069795132,0.61982619,109330.0,109320.0,0.15044]
[1752069795339,0.61982619,109330.0,109320.0,0.006]
[1752069795756,0.61882619,109330.0,109320.0,0.003]
[1752069798286,0.54401163,109320.0,109310.0,0.14444]
[1752069798490,0.02744345,109310.0,109300.0,0.28417602]
[1752069798703,0.02744328,109310.0,109300.0,0.62001633]
[1752069799128,0.00914754,109310.0,109300.0,0.62001633]
[1752069799338,0.01829524,109310.0,109300.0,0.62001633]
[1752069799749,0.02844303,109310.0,109300.0,0.62401633]
[1752069800834,0.0385909,109310.0,109300.0,0.62801633]
[1752069801042,0.02944303,109310.0,109300.0,0.62801633]
[1752069801247,0.23070489,109310.0,109300.0,0.62801633]
[1752069801474,0.23070564,109310.0,109300.0,0.61886787]
[1752069801704,0.21241015,109310.0,109300.0,0.50913361]
[1752069802288,0.20326228,109310.0,109300.0,0.50913361]
[1752069802497,0.54602937,109310.0,109300.0,0.32264465]
[1752069802705,0.53688108,109310.0,109300.0,0.15244]
[1752069803121,0.57008108,109310.0,109300.0,0.008]
[1752069803407,0.60028108,109310.0,109300.0,0.008]
[1752069803784,0.74472108,109310.0,109300.0,0.008]
[1752069804932,0.74372108,109310.0,109300.0,0.004]
[1752069805141,0.19213174,109300.0,109290.0,0.40578251]
[1752069805370,0.19213174,109300.0,109290.0,0.50574589]
[1752069805797,0.19213174,109300.0,109290.0,0.33385701]